fUST/lending_fUST_20240705
["ID","MTS","AMOUNT","RATE_DAILY","PERIOD"]
[331200891,1720131578213,-1000.0,0.00043835,120]
[331200892,1720131578237,-1347.37,0.00043835,120]
[331200893,1720131578262,-166.30894789,0.00044054,60]
[331200894,1720131578290,-1347.37,0.00044109,120]
[331200895,1720131578317,-1347.37,0.00044383,120]
[331200896,1720131578342,-1347.37,0.00044657,120]
[331200897,1720131578371,-1347.37,0.00044931,120]
[331200898,1720131578396,-501.0,0.00045,90]
[331200899,1720131578421,-312.0,0.00045,90]
[331200900,1720131578445,-150.0,0.00045054,60]
[331200901,1720131578470,-1347.37,0.00045205,120]
[331200902,1720131578495,-1347.37,0.00045479,120]
[331200903,1720131578519,-501.0,0.00045685,90]
[331200904,1720131578542,-312.0,0.00045685,90]
[331200905,1720131578570,-155.00833792,0.00045697,64]
[331200906,1720131578595,-1347.37,0.00045753,120]
[331200907,1720131578618,-4086.41403547,0.0004577,52]
[331200908,1720131578644,-288.35858847,0.00046,120]
[331200909,1720131578667,-400.0,0.00046,30]
[331200910,1720131578691,-418.841123,0.00046027,14]
[331200911,1720131578719,-151.0,0.00046027,14]
[331200912,1720131578743,-1347.37,0.00046027,120]
[331200913,1720131578767,-150.0,0.00046054,60]
[331200914,1720131578795,-3068.40330283,0.00046228,54]
[331200915,1720131578819,-1347.37,0.00046301,120]
[331200916,1720131578842,-300.0,0.000464,30]
[331200917,1720131578866,-1347.37,0.00046575,120]
[331200918,1720131578889,-267.8980099,0.00046575,120]
[331200919,1720131578913,-1347.37,0.00046849,120]
[331200920,1720131578936,-151.0,0.00046904,120]
[331200921,1720131578959,-775.0,0.0004693,30]
[331200922,1720131578981,-169.3,0.00046959,60]
[331200923,1720131579004,-152.0,0.00046959,60]
[331200924,1720131579029,-999.98888388,0.00047,7]
[331200925,1720131579051,-150.0,0.00047054,60]
[331200926,1720131579074,-1347.37,0.00047123,120]
[331200927,1720131579098,-1347.4298985,0.00047397,120]
[331200928,1720131579122,-300.0,0.000474,31]
[331200929,1720131579145,-501.0,0.00047682,90]
[331200930,1720131579168,-312.0,0.00047682,90]
[331200931,1720131579191,-155.00833792,0.00047697,72]
[331200932,1720131579214,-7956.58190603,0.0004789,120]
[331200933,1720131579243,-1363.20208244,0.00048,120]
[331200934,1720131579267,-2296.95625394,0.00048,120]
[331200935,1720131579291,-400.0,0.00048,30]
[331200936,1720131579315,-169.3,0.00048039,60]
[331200937,1720131579338,-152.0,0.00048039,60]
[331200938,1720131579363,-150.0,0.00048054,60]
[331200939,1720131579388,-151.0,0.00048055,120]
[331200940,1720131579411,-2035.89175502,0.00048398,8]
[331200941,1720131579439,-300.0,0.000484,33]
[331200942,1720131579463,-3305.70924712,0.000488,90]
[331200943,1720131579491,-150.0,0.00049054,60]
[331200944,1720131579516,-169.3,0.0004912,60]
[331200945,1720131579539,-152.0,0.0004912,60]
[331200946,1720131579564,-151.0,0.00049205,120]
[331200947,1720131579588,-2084.07858796,0.00049315,120]
[331200948,1720131579614,-10445.75,0.00049315,120]
[331200949,1720131579638,-318.15818596,0.00049315,31]
[331200950,1720131579662,-1616.00224504,0.00049315,120]
[331200951,1720131579687,-300.0,0.000494,35]
[331200952,1720131579715,-775.0,0.000494,30]
[331200953,1720131579741,-10445.75,0.00049589,120]
[331200954,1720131579768,-155.00833792,0.00049697,80]
[331200955,1720131579794,-10445.75,0.00049863,120]
[331200956,1720131579820,-154.83742071,0.0005,30]
[331200957,1720131579844,-573.3201657,0.0005,7]
[331200958,1720131579978,-4307.39142232,0.0005,60]
[331200959,1720131580002,-1501.55557945,0.0005,30]
[331200960,1720131580027,-1133.0,0.0005,120]
[331200961,1720131580052,-517.63830531,0.0005,10]
[331200962,1720131580076,-1607.21216667,0.0005,60]
[331200963,1720131580100,-300.6801153,0.0005,30]
[331200964,1720131580124,-1964.00261345,0.0005,60]
[331200965,1720131580148,-2643.906518,0.0005,120]
[331200966,1720131580172,-400.0,0.0005,30]
[331200967,1720131580196,-150.0,0.00050054,60]
[331200968,1720131580222,-501.0,0.00050066,120]
[331200969,1720131580247,-312.0,0.00050066,120]
[331200970,1720131580272,-10445.75,0.00050136,120]
[331200971,1720131580297,-169.3,0.000502,60]
[331200972,1720131580327,-152.0,0.000502,60]
[331200973,1720131580351,-151.0,0.00050356,120]
[331200974,1720131580377,-300.0,0.000504,36]
[331200975,1720131580406,-10445.75,0.0005041,120]
[331200976,1720131580432,-10445.75,0.00050684,120]
[331200977,1720131580457,-10445.75,0.00050958,120]
[331200978,1720131580483,-636.5613204,0.00050958,120]
[331200979,1720131580510,-500.0,0.00051,120]
[331200980,1720131580534,-500.0,0.00051,120]
[331200981,1720131580558,-500.0,0.00051,120]
[331200982,1720131580583,-500.0,0.00051,120]
[331200983,1720131580609,-500.0,0.00051,120]
[331200984,1720131580635,-500.0,0.00051,120]
[331200985,1720131580662,-500.0,0.00051,120]
[331200986,1720131580687,-500.0,0.00051,120]
[331200987,1720131580715,-500.0,0.00051,120]
[331200988,1720131580739,-500.0,0.00051,120]
[331200989,1720131580765,-500.0,0.00051,120]
[331200990,1720131580789,-500.0,0.00051,120]
[331200991,1720131580814,-500.0,0.00051,120]
[331200992,1720131580839,-500.0,0.00051,120]
[331200993,1720131580864,-500.0,0.00051,120]
[331200994,1720131580890,-500.0,0.00051,120]
[331200995,1720131580914,-500.0,0.00051,120]
[331200996,1720131580939,-500.0,0.00051,120]
[331200997,1720131580962,-500.0,0.00051,120]
[331200998,1720131580987,-500.0,0.00051,120]
[331200999,1720131581011,-500.0,0.00051,120]
[331201000,1720131581035,-500.0,0.00051,120]
[331201001,1720131581059,-500.0,0.00051,120]
[331201002,1720131581082,-500.0,0.00051,120]
[331201003,1720131581107,-500.0,0.00051,120]
[331201004,1720131581131,-500.0,0.00051,120]
[331201005,1720131581154,-500.0,0.00051,120]
[331201006,1720131581179,-500.0,0.00051,120]
[331201007,1720131581203,-500.0,0.00051,120]
[331201008,1720131581227,-500.0,0.00051,120]
[331201009,1720131581251,-427.73,0.00051,120]
[331201010,1720131581275,-500.0,0.00051,120]
[331201011,1720131581299,-417.73,0.00051,120]
[331201012,1720131581325,-500.0,0.00051,120]
[331201013,1720131581352,-500.0,0.00051,120]
[331201014,1720131581379,-500.0,0.00051,120]
[331201015,1720131581403,-500.0,0.00051,120]
[331201016,1720131581430,-555.67,0.00051,120]
[331201017,1720131581455,-550.54128757,0.00051,120]
[331201018,1720131581478,-211.97279167,0.00051,120]
[331201019,1720131581501,-150.0,0.00051054,60]
[331201020,1720131581533,-10445.75,0.00051232,120]
[331201021,1720131581564,-300.0,0.000514,38]
[331201022,1720131581595,-383.0,0.000514,29]
[331201023,1720131581621,-383.0,0.000514,29]
[331201024,1720131581648,-383.0,0.000514,29]
[331201025,1720131581678,-766.0,0.000514,29]
[331201026,1720131581707,-766.0,0.000514,29]
[331201027,1720131581740,-766.0,0.000514,29]
[331201028,1720131581770,-150.0,0.000514,43]
[331201029,1720131581799,-10445.75,0.00051506,120]
[331201030,1720131581829,-151.0,0.00051507,120]
[331201031,1720131581858,-877.0,0.0005154,120]
[331201032,1720131581887,-155.00833792,0.00051697,88]
[331201033,1720131581915,-10445.75,0.0005178,120]
[331201034,1720131581944,-1214.03998355,0.00051846,120]
[331201035,1720131581972,-1214.03998355,0.00051896,120]
[331201036,1720131582000,-1000.0,0.00051999,120]
[331201037,1720131582031,-302.97289636,0.00052,30]
[331201038,1720131582059,-2606.0,0.00052,120]
[331201039,1720131582087,-775.0,0.00052,30]
[331201040,1720131582111,-150.0,0.00052054,60]
[331201041,1720131582141,-10445.75,0.00052054,120]
[331201042,1720131582169,-10445.75,0.00052328,120]
[331201043,1720131582196,-150.0,0.000524,45]
[331201044,1720131582222,-10445.75,0.00052602,120]
[331201045,1720131582249,-151.0,0.00052658,120]
[331201046,1720131582280,-10445.75,0.00052876,120]
[331201047,1720131582309,-264.49294974,0.00053,30]
[331201048,1720131582337,-242.8590566,0.00053,30]
[331201049,1720131582363,-893.0893637,0.00053,120]
[331201050,1720131582388,-150.0,0.00053054,60]
[331201051,1720131582414,-200.0,0.0005306,120]
[331201052,1720131582439,-10445.75,0.0005315,120]
[331201053,1720131582465,-606.95694785,0.000533,120]
[331201054,1720131582492,-200.0,0.000534,47]
[331201055,1720131582520,-501.0,0.00053403,120]
[331201056,1720131582545,-312.0,0.00053403,120]
[331201057,1720131582572,-601.19166727,0.00053424,120]
[331201058,1720131582600,-500.0,0.00053424,120]
[331201059,1720131582628,-501.07903626,0.00053424,120]
[331201060,1720131582655,-512.26264273,0.00053424,120]
[331201061,1720131582682,-516.65305487,0.00053424,120]
[331201062,1720131582708,-10445.75,0.00053424,120]
[331201063,1720131582739,-10445.75,0.00053698,120]
[331201064,1720131582765,-151.0,0.00053808,120]
[331201065,1720131582794,-10445.75,0.00053972,120]
[331201066,1720131582820,-194.71726292,0.00054,120]
[331201067,1720131582847,-500.0,0.00054,120]
[331201068,1720131582873,-261.41710068,0.00054,120]
[331201069,1720131582900,-151.0,0.0005411,120]
[331201070,1720131582926,-10445.75,0.00054246,120]
[331201071,1720131582954,-10445.75,0.0005452,120]
[331201072,1720131582982,-775.0,0.000546,30]
[331201073,1720131583010,-2213.63,0.00054767,120]
[331201074,1720131583036,-2213.63,0.00054794,120]
[331201075,1720131583061,-500.0,0.00054794,120]
[331201076,1720131583086,-500.0,0.00054794,120]
[331201077,1720131583112,-500.0,0.00054794,120]
[331201078,1720131583141,-500.0,0.00054794,120]
[331201079,1720131583166,-500.0,0.00054794,120]
[331201080,1720131583194,-500.0,0.00054794,120]
[331201081,1720131583221,-634.41121872,0.00054794,120]
[331201082,1720131583398,-500.0,0.00054794,120]
[331201083,1720131583423,-500.0,0.00054794,120]
[331201084,1720131583447,-500.0,0.00054794,120]
[331201085,1720131583471,-637.88042326,0.00054794,120]
[331201086,1720131583494,-10445.75,0.00054794,120]
[331201087,1720131583518,-736.4,0.00054794,120]
[331201088,1720131583542,-736.4,0.00054794,120]
[331201089,1720131583566,-736.4,0.00054794,120]
[331201090,1720131583589,-736.4,0.00054794,120]
[331201091,1720131583613,-736.4,0.00054794,120]
[331201092,1720131583638,-736.4,0.00054794,120]
[331201093,1720131583664,-736.4,0.00054794,120]
[331201094,1720131583688,-736.4,0.00054794,120]
[331201095,1720131583713,-736.4,0.00054794,120]
[331201096,1720131583738,-736.4,0.00054794,120]
[331201097,1720131583764,-736.4,0.00054794,120]
[331201098,1720131583790,-736.4,0.00054794,120]
[331201099,1720131583816,-736.4,0.00054794,120]
[331201100,1720131583842,-736.4,0.00054794,120]
[331201101,1720131583866,-736.4,0.00054794,120]
[331201102,1720131583890,-736.4,0.00054794,120]
[331201103,1720131583917,-736.4,0.00054794,120]
[331201104,1720131583944,-736.4,0.00054794,120]
[331201105,1720131583970,-736.4,0.00054794,120]
[331201106,1720131583995,-736.4,0.00054794,120]
[331201107,1720131584022,-736.4,0.00054794,120]
[331201108,1720131584046,-736.4,0.00054794,120]
[331201109,1720131584069,-736.4,0.00054794,120]
[331201110,1720131584092,-736.58958243,0.00054794,120]
[331201111,1720131584116,-600.0,0.00054795,120]
[331201112,1720131584139,-163.54034279,0.00054795,120]
[331201113,1720131584163,-163.54034279,0.00054795,120]
[331201114,1720131584187,-164.04,0.00054795,120]
[331201115,1720131584211,-151.07570104,0.00054795,120]
[331201116,1720131584235,-151.07570104,0.00054795,120]
[331201117,1720131584259,-151.07570104,0.00054795,120]
[331201118,1720131584296,-151.07570104,0.00054795,120]
[331201119,1720131584323,-151.07570104,0.00054795,120]
[331201120,1720131584352,-151.07570104,0.00054795,120]
[331201121,1720131584380,-151.07570104,0.00054795,120]
[331201122,1720131584407,-151.07570104,0.00054795,120]
[331201123,1720131584435,-151.07570104,0.00054795,120]
[331201124,1720131584464,-151.07570104,0.00054795,120]
[331201125,1720131584490,-151.07570104,0.00054795,120]
[331201126,1720131584515,-151.07570104,0.00054795,120]
[331201127,1720131584543,-151.57,0.00054795,120]
[331201128,1720131584569,-163.62379202,0.00054795,120]
[331201129,1720131584595,-164.12,0.00054795,120]
[331201130,1720131584620,-163.81129202,0.00054795,120]
[331201131,1720131584645,-163.81129202,0.00054795,120]
[331201132,1720131584670,-163.81129202,0.00054795,120]
[331201133,1720131584695,-163.81129202,0.00054795,120]
[331201134,1720131584724,-163.81129202,0.00054795,120]
[331201135,1720131584751,-163.81129202,0.00054795,120]
[331201136,1720131584776,-163.81129202,0.00054795,120]
[331201137,1720131584804,-164.31,0.00054795,120]
[331201138,1720131621448,-1870.88467593,0.00019039,3]
[331201139,1720131621476,-22232.40698835,0.0002,4]
[331201140,1720131621512,-1401.68714535,0.00029861,4]
[331201141,1720131621537,-200.69263147,0.00034336,4]
[331201142,1720131621562,-20298.96184421,0.00034567,4]
[331201143,1720131621587,-20298.96184421,0.00034567,4]
[331201144,1720131621612,-23173.02776188,0.00034602,4]
[331201145,1720131621637,-3377.06733884,0.00035,4]
[331201146,1720131621661,-5957.41241652,0.00035615,4]
[331201147,1720131621685,-58607.04,0.00035616,3]
[331201148,1720131621710,-84281.55,0.00035616,3]
[331201149,1720131621740,-70234.62,0.00035616,3]
[331201150,1720131621766,-154.83742071,0.00037,4]
[331201151,1720131621790,-176.55656884,0.000392,10]
[331201152,1720131621818,-6839.92158589,0.00039999,4]
[331201153,1720131621843,-3037.62740239,0.00039999,4]
[331201154,1720131621868,-2120.16624081,0.00039999,4]
[331201155,1720131621891,-1652.81230969,0.00041095,4]
[331201156,1720131621915,-659.64567928,0.00041589,4]
[331201157,1720131621939,-553.11374852,0.00041589,4]
[331201158,1720131621967,-471.22669351,0.00041941,4]
[331201159,1720131621992,-605.1330657,0.00041941,4]
[331201160,1720131622017,-471.22669351,0.00041941,4]
[331201161,1720131622042,-1456.95578047,0.00041999,4]
[331201162,1720131622067,-154.83742071,0.00042229,4]
[331201163,1720131622092,-186.75275385,0.00042398,5]
[331201164,1720131622116,-166.02140592,0.00042398,4]
[331201165,1720131622141,-154.83742071,0.00042629,4]
[331201166,1720131622167,-154.83742071,0.00042629,4]
[331201167,1720131622192,-730.85811581,0.00046,3]
[331201168,1720131622216,-20580.62773172,0.00047,4]
[331201169,1720131622240,-2606.06,0.00049563,6]
[331201170,1720131622267,-226.23042155,0.0005,4]
[331201171,1720131622292,-154.83742071,0.0005,30]
[331201172,1720131622897,1500.0,0.00041589,4]
[331201173,1720131623948,156.0,0.00045,90]
[331201174,1720131624276,156.0,0.00045685,90]
[331201175,1720131624748,156.0,0.00047682,90]
[331201176,1720131625630,156.0,0.00050066,120]
[331201177,1720131625980,605.1330657,0.00041589,4]
[331201178,1720131628100,20298.96184421,0.00034563,4]
[331201179,1720131628349,1971.13452202,0.000425,30]
[331201180,1720131628475,351.27235617,0.0003,30]
[331201181,1720131631160,19400.06226413,0.00035616,3]
[331201186,1720131729538,154.83742071,9.999e-05,2]
[331201190,1720131940191,-819.0999939,0.00012096,2]
[331201191,1720131940333,-200.69263147,0.0001212,2]
[331201192,1720131940354,-1198.8828249,0.00012293,2]
[331201193,1720131940374,-24900.0,0.00012517,2]
[331201194,1720131940394,-250.0,0.00012809,2]
[331201195,1720131940414,-1984.02134901,0.00013598,2]
[331201196,1720131940434,-3554.37037963,0.00013598,2]
[331201197,1720131940455,-415.18531572,0.00013688,2]
[331201198,1720131940474,-500.0,0.00013698,2]
[331201199,1720131940496,-500.0,0.00013698,2]
[331201200,1720131940516,-500.0,0.00013698,2]
[331201201,1720131940537,-1993.69,0.00013698,2]
[331201202,1720131940559,-500.0,0.00013698,2]
[331201203,1720131940578,-240.41970725,0.00013698,2]
[331201204,1720131940597,-500.0,0.00013698,2]
[331201205,1720131940618,-500.0,0.00013698,2]
[331201206,1720131940637,-500.0,0.00013698,2]
[331201207,1720131940657,-500.0,0.00013698,2]
[331201208,1720131940676,-176.34403504,0.00013698,2]
[331201209,1720131940698,-500.0,0.00013698,2]
[331201210,1720131940718,-500.0,0.00013698,2]
[331201211,1720131940737,-500.0,0.00013698,2]
[331201212,1720131940757,-500.0,0.00013698,2]
[331201213,1720131940776,-500.0,0.00013698,2]
[331201214,1720131940797,-500.0,0.00013698,2]
[331201215,1720131940819,-622.08543279,0.00013698,2]
[331201216,1720131940839,-500.0,0.00013698,2]
[331201217,1720131940857,-500.0,0.00013698,2]
[331201218,1720131940879,-500.0,0.00013698,2]
[331201219,1720131940898,-500.0,0.00013698,2]
[331201220,1720131940918,-500.0,0.00013698,2]
[331201221,1720131940938,-500.0,0.00013698,2]
[331201222,1720131940957,-500.0,0.00013698,2]
[331201223,1720131940979,-500.0,0.00013698,2]
[331201224,1720131940998,-500.0,0.00013698,2]
[331201225,1720131941017,-500.0,0.00013698,2]
[331201226,1720131941037,-500.0,0.00013698,2]
[331201227,1720131941057,-500.0,0.00013698,2]
[331201228,1720131941076,-500.0,0.00013698,2]
[331201229,1720131941098,-500.0,0.00013698,2]
[331201230,1720131941117,-498.1300528,0.00013698,2]
[331201231,1720131941135,-500.0,0.00013698,2]
[331201232,1720131941154,-500.0,0.00013698,2]
[331201233,1720131941173,-500.0,0.00013698,2]
[331201234,1720131941192,-500.0,0.00013698,2]
[331201235,1720131941212,-500.0,0.00013698,2]
[331201236,1720131941232,-500.0,0.00013698,2]
[331201237,1720131941250,-500.0,0.00013698,2]
[331201238,1720131941269,-500.0,0.00013698,2]
[331201239,1720131941288,-500.0,0.00013698,2]
[331201240,1720131941310,-500.0,0.00013698,2]
[331201241,1720131941329,-500.0,0.00013698,2]
[331201242,1720131941349,-503.60821617,0.00013698,2]
[331201243,1720131941370,-500.0,0.00013698,2]
[331201244,1720131941390,-500.0,0.00013698,2]
[331201245,1720131941410,-500.0,0.00013698,2]
[331201246,1720131941429,-500.0,0.00013698,2]
[331201247,1720131941448,-500.0,0.00013698,2]
[331201248,1720131941466,-500.0,0.00013698,2]
[331201249,1720131941490,-500.0,0.00013698,2]
[331201250,1720131941510,-500.0,0.00013698,2]
[331201251,1720131941528,-500.0,0.00013698,2]
[331201252,1720131941549,-500.0,0.00013698,2]
[331201253,1720131941568,-500.0,0.00013698,2]
[331201254,1720131941587,-292.90283825,0.00013698,2]
[331201255,1720131941609,-500.0,0.00013698,2]
[331201256,1720131941628,-500.62278699,0.00013698,2]
[331201257,1720131941650,-500.0,0.00013698,2]
[331201258,1720131941669,-500.0,0.00013698,2]
[331201259,1720131941692,-500.0,0.00013698,2]
[331201260,1720131941711,-500.0,0.00013698,2]
[331201261,1720131941731,-500.0,0.00013698,2]
[331201262,1720131941750,-500.0,0.00013698,2]
[331201263,1720131941769,-500.0,0.00013698,2]
[331201264,1720131941789,-500.0,0.00013698,2]
[331201265,1720131941813,-500.0,0.00013698,2]
[331201266,1720131941833,-500.0,0.00013698,2]
[331201267,1720131941854,-500.0,0.00013698,2]
[331201268,1720131941875,-500.0,0.00013698,2]
[331201269,1720131941898,-500.0,0.00013698,2]
[331201270,1720131941917,-500.0,0.00013698,2]
[331201271,1720131941937,-500.0,0.00013698,2]
[331201272,1720131941956,-500.0,0.00013698,2]
[331201273,1720131941976,-215.42829121,0.00013698,2]
[331201274,1720131941996,-500.0,0.00013698,2]
[331201275,1720131942016,-500.0,0.00013698,2]
[331201276,1720131942037,-500.0,0.00013698,2]
[331201277,1720131942055,-500.0,0.00013698,2]
[331201278,1720131942073,-500.0,0.00013698,2]
[331201279,1720131942092,-500.0,0.00013698,2]
[331201280,1720131942111,-500.0,0.00013698,2]
[331201281,1720131942130,-500.0,0.00013698,2]
[331201282,1720131942150,-502.89715957,0.00013698,2]
[331201283,1720131942171,-500.0,0.00013698,2]
[331201284,1720131942191,-500.0,0.00013698,2]
[331201285,1720131942210,-500.0,0.00013698,2]
[331201286,1720131942228,-500.0,0.00013698,2]
[331201287,1720131942248,-500.0,0.00013698,2]
[331201288,1720131942267,-500.0,0.00013698,2]
[331201289,1720131942286,-500.0,0.00013698,2]
[331201290,1720131942306,-505.56508567,0.00013698,2]
[331201291,1720131942325,-500.0,0.00013698,2]
[331201292,1720131942345,-500.0,0.00013698,2]
[331201293,1720131942365,-306.06859678,0.00013698,2]
[331201294,1720131942387,-500.0,0.00013698,2]
[331201295,1720131942410,-500.0,0.00013698,2]
[331201296,1720131942432,-500.0,0.00013698,2]
[331201297,1720131942453,-500.0,0.00013698,2]
[331201298,1720131942475,-218.86439233,0.00013698,2]
[331201299,1720131942496,-501.87428358,0.00013698,2]
[331201300,1720131942517,-318.90391145,0.00013698,2]
[331201301,1720131942536,-500.0,0.00013698,2]
[331201302,1720131942556,-500.0,0.00013698,2]
[331201303,1720131942579,-500.0,0.00013698,2]
[331201304,1720131942598,-549.11876076,0.00013698,2]
[331201305,1720131942619,-500.0,0.00013698,2]
[331201306,1720131942638,-500.0,0.00013698,2]
[331201307,1720131942658,-500.0,0.00013698,2]
[331201308,1720131942678,-503.11874479,0.00013698,2]
[331201309,1720131942698,-500.0,0.00013698,2]
[331201310,1720131942721,-500.0,0.00013698,2]
[331201311,1720131942741,-500.0,0.00013698,2]
[331201312,1720131942762,-500.0,0.00013698,2]
[331201313,1720131942785,-500.0,0.00013698,2]
[331201314,1720131942808,-500.0,0.00013698,2]
[331201315,1720131942827,-500.0,0.00013698,2]
[331201316,1720131942847,-500.0,0.00013698,2]
[331201317,1720131942866,-500.0,0.00013698,2]
[331201318,1720131942888,-500.0,0.00013698,2]
[331201319,1720131942909,-368.68610691,0.00013698,2]
[331201321,1720131971260,165.15606709,0.0002948,120]
[331201323,1720132030109,-5407.71734641,0.00013598,2]
[331201324,1720132030136,-300.0,0.00013697,2]
[331201325,1720132030161,-131.31389309,0.00013698,2]
[331201326,1720132030184,-500.0,0.00013698,2]
[331201327,1720132030207,-500.0,0.00013698,2]
[331201328,1720132030229,-500.0,0.00013698,2]
[331201329,1720132030251,-500.0,0.00013698,2]
[331201330,1720132030273,-500.0,0.00013698,2]
[331201331,1720132030295,-500.0,0.00013698,2]
[331201332,1720132030316,-500.0,0.00013698,2]
[331201333,1720132030338,-500.0,0.00013698,2]
[331201334,1720132030360,-180.46030379,0.00013698,2]
[331201336,1720132041108,-319.53969621,0.00013698,2]
[331201337,1720132041128,-500.0,0.00013698,2]
[331201338,1720132041148,-314.18428137,0.00013698,2]
[331201339,1720132041170,-500.0,0.00013698,2]
[331201340,1720132041189,-500.0,0.00013698,2]
[331201341,1720132041207,-500.0,0.00013698,2]
[331201342,1720132041226,-500.0,0.00013698,2]
[331201343,1720132041243,-500.0,0.00013698,2]
[331201344,1720132041262,-500.0,0.00013698,2]
[331201345,1720132041281,-500.0,0.00013698,2]
[331201346,1720132041300,-500.0,0.00013698,2]
[331201347,1720132041318,-500.0,0.00013698,2]
[331201348,1720132041336,-500.0,0.00013698,2]
[331201349,1720132041356,-500.0,0.00013698,2]
[331201350,1720132041375,-500.0,0.00013698,2]
[331201351,1720132041396,-500.0,0.00013698,2]
[331201352,1720132041416,-500.0,0.00013698,2]
[331201353,1720132041435,-500.0,0.00013698,2]
[331201354,1720132041454,-500.0,0.00013698,2]
[331201355,1720132041475,-500.0,0.00013698,2]
[331201356,1720132041493,-500.0,0.00013698,2]
[331201357,1720132041511,-343.74671265,0.00013698,2]
[331201358,1720132041533,-500.0,0.00013698,2]
[331201359,1720132041554,-566.80759736,0.00013698,2]
[331201360,1720132041577,-506.80514878,0.00013698,2]
[331201361,1720132041595,-500.0,0.00013698,2]
[331201362,1720132041617,-500.0,0.00013698,2]
[331201363,1720132041638,-500.0,0.00013698,2]
[331201364,1720132041657,-500.0,0.00013698,2]
[331201365,1720132041676,-500.0,0.00013698,2]
[331201366,1720132041695,-500.0,0.00013698,2]
[331201367,1720132041714,-501.47314881,0.00013698,2]
[331201368,1720132041734,-500.0,0.00013698,2]
[331201369,1720132041754,-533.00866321,0.00013698,2]
[331201370,1720132041776,-500.0,0.00013698,2]
[331201371,1720132041797,-558.75,0.00013698,2]
[331201372,1720132041817,-500.0,0.00013698,2]
[331201373,1720132041840,-500.0,0.00013698,2]
[331201374,1720132041860,-469.41348333,0.00013698,2]
[331201375,1720132041882,-500.0,0.00013698,2]
[331201376,1720132041902,-500.0,0.00013698,2]
[331201377,1720132041925,-521.16828657,0.00013698,2]
[331201378,1720132041946,-500.0,0.00013698,2]
[331201379,1720132041965,-500.0,0.00013698,2]
[331201380,1720132041986,-502.14449728,0.00013698,2]
[331201381,1720132042006,-500.0,0.00013698,2]
[331201382,1720132042026,-500.0,0.00013698,2]
[331201383,1720132042046,-500.0,0.00013698,2]
[331201384,1720132042065,-500.0,0.00013698,2]
[331201385,1720132042084,-500.0,0.00013698,2]
[331201386,1720132042103,-541.16192918,0.00013698,2]
[331201387,1720132042121,-527.31475637,0.00013698,2]
[331201388,1720132042140,-500.0,0.00013698,2]
[331201389,1720132042160,-508.34921043,0.00013698,2]
[331201390,1720132042179,-500.0,0.00013698,2]
[331201391,1720132042198,-500.0,0.00013698,2]
[331201392,1720132042218,-500.0,0.00013698,2]
[331201393,1720132042239,-500.0,0.00013698,2]
[331201394,1720132042258,-500.0,0.00013698,2]
[331201395,1720132042277,-500.0,0.00013698,2]
[331201396,1720132042296,-379.99700905,0.00013698,2]
[331201397,1720132042316,-500.0,0.00013698,2]
[331201398,1720132042336,-500.0,0.00013698,2]
[331201399,1720132042354,-500.0,0.00013698,2]
[331201400,1720132042373,-500.0,0.00013698,2]